lending/lending_fUSD_20240911
["ID","MTS","AMOUNT","RATE_DAILY","PERIOD"]
[337768651,1726081844032,-150.0,0.00014033,2]
[337768652,1726081844041,-150.0,0.00014039,2]
[337768653,1726081844053,-422.04,0.00014055,2]
[337768654,1726081844062,-791.84,0.00014055,2]
[337768655,1726081844072,-150.0,0.00014056,2]
[337768656,1726081844084,-150.0,0.00014073,2]
[337768657,1726081844095,-150.0,0.00014091,2]
[337768658,1726081844106,-150.0,0.00014101,2]
[337768659,1726081844116,-150.0,0.00014108,2]
[337768660,1726081844126,-150.0,0.00014125,2]
[337768661,1726081844136,-150.0,0.00014142,2]
[337768662,1726081844145,-150.0,0.00014159,2]
[337768663,1726081844154,-150.0,0.00014169,2]
[337768664,1726081844163,-150.0,0.00014177,2]
[337768665,1726081844173,-252.0,0.00014188,2]
[337768666,1726081844182,-172.62,0.00014189,2]
[337768667,1726081844191,-854.42,0.00014192,2]
[337768668,1726081844200,-357.37,0.00014192,2]
[337768669,1726081844210,-427.41,0.00014192,2]
[337768670,1726081844220,-150.0,0.00014192,2]
[337768671,1726081844230,-154.12,0.00014192,2]
[337768672,1726081844240,-150.0,0.00014192,2]
[337768673,1726081844249,-301.96,0.00014192,2]
[337768674,1726081844259,-350.92,0.00014192,2]
[337768675,1726081844270,-150.0,0.00014194,2]
[337768676,1726081844279,-150.0,0.00014197,2]
[337768677,1726081844288,-999.99999999,0.0001421,7]
[337768678,1726081844297,-150.0,0.00014211,2]
[337768679,1726081844306,-150.0,0.00014228,2]
[337768680,1726081844316,-150.0,0.00014237,2]
[337768681,1726081844325,-150.0,0.00014246,2]
[337768682,1726081844334,-150.0,0.00014263,2]
[337768683,1726081844343,-150.0,0.0001428,2]
[337768684,1726081844352,-150.0,0.00014297,2]
[337768685,1726081844361,-150.0,0.00014305,2]
[337768686,1726081844371,-150.0,0.00014315,2]
[337768687,1726081844380,-150.0,0.00014332,2]
[337768688,1726081844389,-150.0,0.00014349,2]
[337768689,1726081844398,-3610.71252267,0.00014356,2]
[337768690,1726081844410,-3714.5963315,0.00014356,2]
[337768691,1726081844419,-150.0,0.00014366,2]
[337768692,1726081844428,-150.0,0.00014373,2]
[337768693,1726081844437,-150.0,0.00014383,2]
[337768694,1726081844446,-525.927,0.00014388,2]
[337768695,1726081844456,-448.0,0.00014388,2]
[337768696,1726081844465,-557.0,0.00014388,2]
[337768697,1726081844474,-533.273,0.00014388,2]
[337768698,1726081844483,-150.0,0.00014401,2]
[337768699,1726081844493,-150.0,0.00014418,2]
[337768700,1726081844502,-150.0,0.00014435,2]
[337768701,1726081844511,-150.0,0.00014441,2]
[337768702,1726081844521,-150.0,0.00014452,2]
[337768703,1726081844530,-300.09,0.00014466,2]
[337768704,1726081844539,-564.9,0.00014466,2]
[337768705,1726081844548,-150.0,0.0001447,2]
[337768706,1726081844557,-150.0,0.00014487,2]
[337768707,1726081844567,-150.0,0.00014504,2]
[337768708,1726081844576,-150.0,0.00014509,2]
[337768709,1726081844585,-150.0,0.00014521,2]
[337768710,1726081844595,-150.0,0.00014538,2]
[337768711,1726081844604,-150.0,0.00014556,2]
[337768712,1726081844613,-150.0,0.00014573,2]
[337768713,1726081844622,-150.0,0.00014578,2]
[337768714,1726081844631,-1000.0,0.00014587,2]
[337768715,1726081844644,-150.0,0.0001459,2]
[337768716,1726081844654,-150.0,0.00014607,2]
[337768717,1726081844667,-1326.7159085,0.00014621,2]
[337768718,1726081844679,-5998.59294567,0.00014621,2]
[337768719,1726081844689,-150.0,0.00014625,2]
[337768720,1726081844698,-150.0,0.00014642,2]
[337768721,1726081844707,-150.0,0.00014646,2]
[337768722,1726081844717,-150.0,0.00014659,2]
[337768723,1726081844727,-150.0,0.00014676,2]
[337768724,1726081844737,-150.0,0.00014693,2]
[337768725,1726081844746,-1143.4282256,0.000147,2]
[337768726,1726081844755,-150.0,0.00014711,2]
[337768727,1726081844765,-185.19,0.00014712,2]
[337768728,1726081844774,-150.0,0.00014714,2]
[337768729,1726081844784,-150.0,0.00014728,2]
[337768730,1726081844793,-150.0,0.00014745,2]
[337768731,1726081844803,-150.0,0.00014762,2]
[337768732,1726081844813,-150.0,0.0001478,2]
[337768733,1726081844822,-7140.86176396,0.0001478,2]
[337768746,1726081845683,-584.875,0.00012793,2]
[337768748,1726081845695,-9713.94895569,0.00012793,2]
[337768752,1726081845740,-353.47,0.00012793,2]
[337768754,1726081845799,-11496.2,0.00012793,2]
[337768755,1726081845811,-264.06840755,0.00012793,2]
[337768756,1726081845824,-1487.43763676,0.00012793,2]
[337768757,1726081845834,-184.44709021,0.0001478,2]
[337768758,1726081845844,-150.0,0.00014782,2]
[337768759,1726081845858,-1579.26237303,0.0001479,2]
[337768760,1726081845870,-708.905,0.0001479,2]
[337768761,1726081845891,-1554.23207167,0.0001479,2]
[337768762,1726081845957,-405.08978715,0.0001479,2]
[337768763,1726081845967,-272.092101,0.00014795,2]
[337768764,1726081845977,-27.67656729,0.00014795,2]
[337768765,1726081845988,-604.63743271,0.00014795,2]
[337768766,1726081845998,-174.753,0.00014795,2]
[337768767,1726081846007,-150.0,0.00014797,2]
[337768768,1726081846017,-3000.0,0.000148,2]
[337768769,1726081846027,-150.0,0.00014814,2]
[337768770,1726081846037,-999.999999,0.0001482,10]
[337768771,1726081846048,-150.0,0.00014831,2]
[337768772,1726081846058,-150.0,0.00014848,2]
[337768773,1726081846067,-150.0,0.0001485,2]
[337768774,1726081846077,-150.0,0.00014866,2]
[337768775,1726081846087,-319.57784864,0.0001488,2]
[337768776,1726081846099,-150.0,0.00014883,2]
[337768777,1726081846109,-159.42201488,0.00014885,2]
[337768778,1726081846122,-7325.30885417,0.0001489,2]
[337768779,1726081846133,-512.384042,0.000149,2]
[337768780,1726081846144,-1351.18967359,0.000149,2]
[337768781,1726081846156,-359.162969,0.000149,2]
[337768782,1726081846167,-153.05,0.000149,31]
[337768783,1726081846178,-319.57784864,0.000149,2]
[337768784,1726081846188,-362.06086022,0.000149,2]
[337768785,1726081846199,-704.85845544,0.000149,2]
[337768786,1726081846208,-1000.0,0.000149,2]
[337768787,1726081846218,-150.0,0.000149,2]
[337768788,1726081846228,-150.0,0.00014917,2]
[337768789,1726081846238,-150.0,0.00014918,2]
[337768790,1726081846249,-150.0,0.00014935,2]
[337768791,1726081846260,-150.0,0.00014952,2]
[337768792,1726081846270,-150.0,0.00014969,2]
[337768793,1726081846281,-16335.4861022,0.0001497,2]
[337768794,1726081846291,-26500.95489951,0.0001498,2]
[337768795,1726081846364,-549.96057904,0.0001498,2]
[337768796,1726082054883,1050.0,0.00011,2]
[337768797,1726082221461,19066.28601943,0.00012005,2]
[337768798,1726082352813,374.03,0.00011639,2]
[337768799,1726082632500,152.52,0.00010959,2]
[337768800,1726082750988,16503.44258057,0.00010988,2]
[337768801,1726082751017,5578.2523675,0.00010988,2]
[337768808,1726082888213,405.16,0.00011195,2]
[337768819,1726083031801,-190.90777657,0.00012914,2]
[337768820,1726083031810,-1100.0,0.00013,2]
[337768821,1726083031819,-41.72338152,0.00013014,2]
[337768825,1726083031851,-143.46661848,0.00013014,2]
[337768826,1726083031861,-8398.84,0.00013088,2]
[337768827,1726083031870,-326.60470592,0.00013107,2]
[337768828,1726083031905,-651.17529408,0.00013107,2]
[337768829,1726083031915,-250.0,0.00013121,2]
[337768830,1726083031924,-250.0,0.00013143,2]
[337768831,1726083031933,-2000.0,0.0001316,2]
[337768832,1726083031942,-172.62,0.00013371,2]
[337768833,1726083031953,-1000.0,0.00013403,2]
[337768834,1726083031962,-300.0,0.00013422,2]
[337768835,1726083031971,-500.0,0.00013449,2]
[337768836,1726083031980,-405.16,0.00013459,2]
[337768837,1726083031989,-9999.99,0.00013472,2]
[337768838,1726083031997,-299.99,0.00013472,2]
[337768839,1726083032006,-150.0,0.00013488,2]
[337768840,1726083032015,-299.46038105,0.00013488,2]
[337768841,1726083032023,-150.0,0.00013488,2]
[337768842,1726083032032,-150.0,0.00013488,2]
[337768843,1726083032041,-150.0,0.00013509,2]
[337768844,1726083032051,-150.0,0.0001353,2]
[337768845,1726083032060,-150.0,0.00013552,2]
[337768846,1726083032069,-150.0,0.00013573,2]
[337768847,1726083032079,-150.0,0.00013577,2]
[337768848,1726083032088,-857.33,0.00013578,2]
[337768849,1726083032096,-499.99,0.00013578,2]
[337768850,1726083032105,-2983.79799324,0.00013578,2]
[337768851,1726083032116,-150.0,0.00013595,2]
[337768852,1726083032124,-500.0,0.000136,2]
[337768853,1726083032134,-150.0,0.00013616,2]
[337768854,1726083032143,-150.0,0.00013638,2]
[337768855,1726083032154,-150.0,0.00013659,2]
[337768856,1726083032163,-150.0,0.0001368,2]
[337768857,1726083032172,-1000.0,0.0001369,2]
[337768858,1726083032182,-4389.6255,0.0001369,2]
[337768859,1726083032191,-3256.0601,0.0001369,2]
[337768860,1726083032200,-675.1766,0.0001369,2]
[337768861,1726083032210,-2115.5114,0.0001369,2]
[337768862,1726083032219,-169.18,0.00013699,2]
[337768865,1726083032228,-2751.0,0.00013699,2]
[337768868,1726083032237,-162.3,0.00013699,2]
[337768871,1726083032247,-150.0,0.00013702,2]
[337768874,1726083032256,-150.0,0.00013723,2]
[337768877,1726083032266,-150.0,0.00013745,2]
[337768880,1726083032275,-150.0,0.00013766,2]
[337768883,1726083032284,-150.0,0.00013787,2]
[337768886,1726083032293,-218.35,0.0001379,2]
[337768889,1726083032302,-150.0,0.00013809,2]
[337768891,1726083032312,-4786.06750539,0.00013818,2]
[337768894,1726083032321,-150.0,0.0001383,2]
[337768897,1726083032331,-150.0,0.00013852,2]
[337768900,1726083032340,-150.0,0.00013873,2]
[337768901,1726083032349,-150.0,0.00013894,2]
[337768902,1726083032358,-400.0,0.000139,5]
[337768903,1726083032368,-150.0,0.00013916,2]
[337768904,1726083032378,-150.0,0.00013937,2]
[337768905,1726083032388,-150.0,0.00013959,2]
[337768906,1726083032397,-12624.795795,0.00013974,2]
[337768907,1726083032406,-6539.378947,0.00013974,2]
[337768908,1726083032415,-150.0,0.0001398,2]
[337768909,1726083032426,-800.0,0.00014,5]
[337768910,1726083032435,-150.0,0.00014001,2]
[337768911,1726083032444,-150.0,0.00014023,2]
[337768912,1726083032454,-150.0,0.00014044,2]
[337768913,1726083032463,-150.0,0.00014066,2]
[337768914,1726083032473,-150.0,0.00014087,2]
[337768915,1726083032482,-1300.0,0.000141,5]
[337768916,1726083032492,-150.0,0.00014109,2]
[337768917,1726083032501,-150.0,0.0001413,2]
[337768918,1726083032511,-12624.795795,0.00014149,2]
[337768919,1726083032520,-6539.378947,0.00014149,2]
[337768920,1726083032530,-150.0,0.00014151,2]
[337768921,1726083032539,-150.0,0.00014173,2]
[337768922,1726083032549,-150.0,0.00014192,2]
[337768923,1726083032559,-150.0,0.00014194,2]
[337768924,1726083032568,-1700.0,0.000142,5]
[337768925,1726083032578,-150.0,0.00014216,2]
[337768926,1726083032587,-260.755,0.00014223,2]
[337768927,1726083032596,-150.0,0.00014237,2]
[337768928,1726083032606,-260.38931,0.00014247,2]
[337768929,1726083032615,-150.0,0.00014258,2]
[337768930,1726083032624,-150.0,0.0001428,2]
[337768931,1726083032634,-2100.0,0.000143,5]
[337768932,1726083032643,-150.0,0.00014301,2]
[337768933,1726083032653,-150.0,0.00014323,2]
[337768934,1726083032663,-12624.795795,0.00014323,2]
[337768935,1726083032672,-6539.378947,0.00014323,2]
[337768936,1726083032682,-150.0,0.00014344,2]
[337768937,1726083032691,-150.0,0.00014365,2]
[337768938,1726083032700,-150.0,0.00014387,2]
[337768939,1726083032709,-214.0482,0.00014398,2]
[337768940,1726083032718,-400.0,0.000144,5]
[337768941,1726083032728,-150.0,0.00014408,2]
[337768942,1726083032737,-150.0,0.0001443,2]
[337768943,1726083032747,-150.0,0.00014451,2]
[337768944,1726083032756,-150.0,0.00014472,2]
[337768945,1726083032765,-150.0,0.00014494,2]
[337768946,1726083032775,-463.90516278,0.00014498,2]
[337768947,1726083032787,-484.32,0.00014498,2]
[337768948,1726083032798,-503.022718,0.00014498,2]
[337768949,1726083032809,-1786.71591369,0.00014498,2]
[337768950,1726083032829,-3172.38668386,0.00014498,2]
[337768951,1726083032840,-723.66275033,0.00014498,2]
[337768952,1726083032855,-879.36353194,0.00014498,2]
[337768953,1726083032867,-490.46366303,0.00014498,2]
[337768954,1726083032878,-697.89036063,0.00014498,2]
[337768955,1726083032890,-1097.34227907,0.00014498,2]
[337768956,1726083032901,-1346.50221221,0.00014498,2]
[337768962,1726083038049,-583.24175766,0.00014498,2]
[337768963,1726083038065,-395.9787618,0.00014498,2]
[337768964,1726083038079,-6539.378947,0.00014498,2]
[337768965,1726083038093,-400.0,0.000145,5]
[337768966,1726083038106,-150.0,0.00014515,2]
[337768967,1726083038120,-150.0,0.00014537,2]
[337768968,1726083038134,-150.0,0.00014558,2]
[337768969,1726083038147,-236.90343685,0.00014565,2]
[337768970,1726083038160,-3107.67005435,0.00014573,2]
[337768971,1726083038176,-1503.10643675,0.00014573,2]
[337768972,1726083038191,-3123.95563141,0.00014573,2]
[337768973,1726083038204,-150.0,0.0001458,2]
[337768974,1726083038216,-624.0,0.00014586,2]
[337768975,1726083038229,-1260.0,0.00014586,2]
[337768976,1726083038242,-1103.266,0.00014586,2]
[337768977,1726083038255,-468.791,0.00014586,2]
[337768978,1726083038268,-150.0,0.00014586,2]
[337768979,1726083038281,-557.0,0.00014586,2]
[337768980,1726083038293,-1000.0,0.000146,2]
[337768981,1726083038306,-1000.0,0.000146,3]
[337768982,1726083038318,-1244.0,0.000146,4]
[337768983,1726083038330,-461.72340305,0.000146,3]
[337768984,1726083038345,-538.27659695,0.000146,3]
[337768985,1726083038357,-400.0,0.000146,5]
[337768986,1726083038369,-150.0,0.00014601,2]
[337768987,1726083038380,-315.5173026,0.00014603,2]
[337768988,1726083038392,-453.32877286,0.00014609,2]
[337768989,1726083038404,-2709.48663959,0.00014609,2]
[337768990,1726083038434,-4571.91671005,0.00014609,2]
[337768991,1726083038444,-236.90343679,0.00014613,2]
[337768992,1726083038454,-150.0,0.00014622,2]
[337768993,1726083038465,-150.0,0.00014644,2]
[337768994,1726083038475,-422.86456736,0.00014645,2]
[337768995,1726083038485,-7734.7321225,0.00014646,2]
[337768996,1726083038495,-236.90343679,0.00014661,2]
[337768997,1726083038504,-3100.90269849,0.00014665,2]
[337768998,1726083038516,-425.4,0.00014665,2]
[337768999,1726083038921,-14051.51092982,0.00014665,2]
[337769000,1726083038983,-421.78588728,0.00014665,2]
[337769001,1726083038996,-2364.01451426,0.00014665,2]
[337769002,1726083039008,-724.97184001,0.00014665,2]
[337769003,1726083039863,-336.1424198,0.00014665,2]
[337769004,1726083039876,-10465.05047589,0.00014665,2]
[337769005,1726083039887,-1264.56601225,0.00014665,2]
[337769006,1726083039898,-1024.11606708,0.00014665,2]
[337769007,1726083039908,-1730.995,0.00014665,2]
[337769008,1726083039919,-1072.66280005,0.00014665,2]
[337769009,1726083039930,-2516.12360875,0.00014665,2]
[337769010,1726083039942,-3490.38491819,0.00014665,2]
[337769011,1726083039953,-111045.11391713,0.00014665,2]
[337769012,1726083039963,-5882.5349394,0.00014665,2]
[337769013,1726083039972,-157.35,0.00014665,2]
[337769014,1726083039982,-166.42136765,0.00014665,2]
[337769015,1726083039991,-150.0,0.00014665,2]
[337769016,1726083040001,-500.0,0.00014669,2]
[337769017,1726083040011,-500.0,0.00014669,2]
[337769018,1726083040021,-426.6733762,0.00014669,2]
[337769019,1726083040030,-7334.94005184,0.00014672,2]
[337769020,1726083040041,-2941.2674697,0.00014672,2]
[337769021,1726083040051,-12624.795795,0.00014673,2]
[337769022,1726083040061,-6539.378947,0.00014673,2]
[337769023,1726083040071,-336882.5913,0.00014675,2]
[337769024,1726083040080,-7734.7321225,0.00014682,2]
[337769025,1726083040090,-150.0,0.00014687,2]
[337769026,1726083040099,-150.0,0.0001469,2]
[337769027,1726083040110,-400.0,0.000147,5]
[337769028,1726083040120,-150.0,0.00014708,2]
[337769029,1726083040138,-7334.94005184,0.00014708,2]
[337769031,1726083040147,-2941.2674697,0.00014708,2]
[337769033,1726083040155,-236.90343679,0.00014709,2]
[337769035,1726083040164,-420.0,0.00014713,2]
[337769036,1726083040173,-7734.7321225,0.00014718,2]
[337769038,1726083040183,-150.0,0.00014729,2]
[337769040,1726083040192,-7334.94005184,0.0001473,2]
[337769042,1726083040202,-2941.2674697,0.0001473,2]
[337769044,1726083040212,-657.633,0.00014744,2]
[337769046,1726083040221,-179.928,0.00014744,2]
[337769048,1726083040231,-2941.2674697,0.00014745,2]
[337769050,1726083040241,-7334.94005184,0.00014746,2]
[337769052,1726083040250,-150.0,0.00014751,2]
[337769055,1726083040259,-7734.7321225,0.00014755,2]
[337769058,1726083040269,-236.90343679,0.00014756,2]
[337769060,1726083040279,-14669.8801037,0.00014766,2]
[337769062,1726083040288,-5882.5349394,0.00014766,2]
[337769064,1726083040298,-150.0,0.00014772,2]
[337769066,1726083040308,-422.86456734,0.00014773,2]
[337769068,1726083040318,-1210.6967017,0.00014775,2]
[337769070,1726083040328,-7334.94005184,0.00014777,2]
[337769072,1726083040337,-2941.2674697,0.00014777,2]
[337769074,1726083040346,-7334.94005184,0.0001478,2]
[337769076,1726083040356,-5882.5349394,0.0001478,2]
[337769078,1726083040368,-7334.94005184,0.00014781,2]
[337769080,1726083040379,-12061.7949,0.00014787,2]
[337769082,1726083040392,-7734.7321225,0.00014791,2]
[337769084,1726083040402,-150.0,0.00014794,2]
[337769086,1726083040412,-7334.94005184,0.00014797,2]
[337769088,1726083040423,-2941.2674697,0.00014797,2]
[337769090,1726083040433,-1821.84787602,0.000148,2]
[337769092,1726083040442,-3000.0,0.000148,2]
[337769094,1726083040454,-784.0,0.000148,5]
[337769097,1726083040467,-236.90343679,0.00014804,2]
[337769099,1726083040477,-150.0,0.00014815,2]
[337769101,1726083040486,-2941.2674697,0.00014817,2]
[337769103,1726083040496,-7734.7321225,0.00014827,2]
[337769105,1726083040506,-1276.50654,0.0001483,2]
[337769107,1726083040515,-1276.50655,0.0001483,2]
[337769109,1726083040526,-14669.8801037,0.0001483,2]
[337769111,1726083040535,-2941.2674697,0.0001483,2]
[337769113,1726083040544,-150.0,0.00014836,2]
[337769115,1726083040554,-236.90343679,0.00014852,2]
[337769117,1726083040563,-2941.2674697,0.00014854,2]
[337769119,1726083040572,-150.0,0.00014858,2]
[337769121,1726083040581,-2941.2674697,0.00014863,2]
[337769122,1726083040590,-7734.7321225,0.00014864,2]
[337769124,1726083040599,-2941.2674697,0.0001487,2]
[337769126,1726083040609,-150.0,0.00014879,2]
[337769128,1726083040618,-159.85984811,0.00014886,2]
[337769130,1726083040628,-151.7026734,0.00014886,2]
[337769132,1726083040637,-151.70267337,0.00014889,2]
[337769134,1726083040647,-159.36596831,0.00014889,2]
[337769136,1726083040656,-2941.2674697,0.0001489,2]
[337769138,1726083040665,-151.70267337,0.00014892,2]
[337769140,1726083040674,-151.70267337,0.00014894,2]
[337769142,1726083040686,-151.70267337,0.00014897,2]
[337769144,1726083040696,-2542.26588269,0.000149,2]
[337769146,1726083040705,-150.0,0.000149,2]
[337769148,1726083040714,-3773.55112893,0.000149,2]
[337769150,1726083040723,-7734.7321225,0.000149,2]
[337769152,1726083040732,-152.99,0.000149,31]
[337769154,1726083040741,-152.99,0.000149,31]
[337769156,1726083040750,-152.99,0.000149,31]
[337769158,1726083040760,-152.99,0.000149,31]
[337769160,1726083040769,-152.99,0.000149,31]
[337769162,1726083040778,-152.99,0.000149,31]
[337769164,1726083040787,-159.85984811,0.000149,2]
[337769166,1726083040796,-151.70267337,0.000149,2]
[337769168,1726083040805,-236.90343679,0.000149,2]
[337769170,1726083040815,-1367.0,0.000149,2]
[337769171,1726083040824,-422.86456734,0.000149,2]
[337769173,1726083040834,-150.0,0.00014901,2]
[337769175,1726083040843,-150.0,0.00014922,2]
[337769177,1726083040852,-150.0,0.00014943,2]
[337769179,1726083040861,-5882.5349394,0.00014951,2]
[337769181,1726083040871,-5882.5349394,0.0001496,2]
[337769183,1726083040881,-5882.5349394,0.0001496,2]
[337769185,1726083040891,-150.0,0.00014965,2]
[337769187,1726083040900,-14706.3373485,0.00014969,2]
[337769189,1726083040910,-7502.93431881,0.00014979,2]
[337769191,1726083040919,-26471.4072273,0.0001498,2]
[337769193,1726083040927,-150.062,0.0001498,2]
[337769195,1726083040937,-2000.0,0.0001498,2]
[337769197,1726083040947,-200.0,0.0001498,2]
[337769199,1726083040957,-1276.50654,0.0001498,2]
[337769201,1726083040967,-1276.50654,0.0001498,2]
[337769203,1726083040976,-1276.50654,0.0001498,2]
[337769205,1726083040987,-1276.50654,0.0001498,2]
[337769207,1726083040996,-11765.0698788,0.0001498,2]
[337769209,1726083041005,-188.98289394,0.00014986,2]
[337769211,1726083041014,-183.37789928,0.00014986,2]
[337769213,1726083041023,-689.2,0.00014989,2]
[337769214,1726083041033,-669.0,0.00014989,2]
[337769216,1726083041042,-381.1156196,0.0001499,2]
[337769218,1726083041052,-486.7376731,0.0001499,2]
[337769220,1726083041061,-592.3597267,0.0001499,2]
[337769222,1726083041070,-697.9817802,0.0001499,2]
[337769224,1726083041079,-803.6038337,0.0001499,2]
[337769226,1726083041089,-166.42136765,0.0001499,2]
[337769228,1726083041098,-614.89280797,0.00014993,2]
[337769230,1726083041108,-238146.55881295,0.00015,2]
[337769232,1726083041117,-1787305.63607225,0.00015,2]
[337769234,1726083041130,-16959.17918805,0.00015,2]
[337769237,1726083041141,-4302.89567398,0.00015,2]
[337769240,1726083041163,-21322.69034858,0.00015,2]
[337769242,1726083041174,-449.03088406,0.00015,2]
[337769244,1726083041185,-685.08301683,0.00015,2]
[337769246,1726083041196,-418.43404489,0.00015,2]
[337769281,1726083043798,-22206.73673506,0.00015,2]
[337769285,1726083046026,-11572.47673904,0.00015,2]
[337769289,1726084017742,394.01,0.00011864,2]
[337769309,1726084198685,161.5,0.00010959,2]
[337769313,1726084232010,-250.0,0.00013692,2]
[337769314,1726084232020,-2855.81,0.00013743,2]
[337769315,1726084232030,-616.93,0.00013751,2]
[337769316,1726084232040,-250.0,0.00013761,2]
[337769317,1726084232049,-16.71713517,0.00013762,2]
[337769318,1726084232062,-1983.28286483,0.00013762,2]
[337769319,1726084232072,-718.11,0.00013801,2]
[337769320,1726084232082,-174.68,0.00013832,2]
[337769321,1726084232093,-500.0,0.0001385,2]
[337769322,1726084232455,-1000.0,0.00013937,2]
[337769323,1726084232518,-299.99,0.00013959,2]
[337769324,1726084232528,-394.01,0.00014128,2]
[337769325,1726084232537,-394.06,0.0001426,2]
[337769326,1726084232546,-151.24,0.00014292,2]
[337769327,1726084232556,-159.12,0.000144,2]
[337769328,1726084232565,-7720.56605845,0.00014565,2]
[337769329,1726084232577,-858.16390953,0.00014565,2]
[337769330,1726084232588,-1688.47532487,0.00014565,2]
[337769331,1726084232606,-5710.98748693,0.00014565,2]
[337769332,1726084232618,-2481.88678602,0.00014565,2]
[337769333,1726084232628,-1894.86731563,0.00014565,2]
[337769334,1726084232651,-2354.73262451,0.00014565,2]
[337769335,1726084232662,-310.47899406,0.00014565,2]
[337769336,1726084232671,-143.03100594,0.00014586,2]
[337769341,1726084238303,-413.96899406,0.00014586,2]
[337769342,1726084238313,-150.0,0.00014586,2]
[337769343,1726084238322,-272.30128269,0.000146,4]
[337769344,1726084238333,-727.69871731,0.000146,4]
[337769345,1726084238342,-1000.0,0.000146,3]
[337769346,1726084238351,-1460.0,0.000147,2]
[337769347,1726084238360,-526.107,0.0001473,2]
[337769348,1726084238369,-179.929,0.0001473,2]
[337769349,1726084238380,-234.350379,0.00014795,2]
[337769350,1726084238390,-3000.0,0.000148,2]
[337769351,1726084238400,-3520.43280015,0.0001489,2]
[337769353,1726084238411,-2515.47398675,0.0001489,2]
[337769359,1726084238867,-710.6928131,0.0001489,2]
[337769360,1726084238879,-153.06,0.000149,31]
[337769361,1726084238889,-153.06,0.000149,31]
[337769362,1726084238898,-153.06,0.000149,31]
[337769363,1726084238908,-153.06,0.000149,31]
[337769364,1726084238917,-153.06,0.000149,31]
[337769365,1726084238927,-153.06,0.000149,31]
[337769366,1726084238936,-153.06,0.000149,31]
[337769367,1726084238945,-773.80169893,0.0001498,2]
[337769368,1726084238955,-158.51926402,0.00014989,2]
[337769369,1726084238965,-1283.2608644,0.0001499,2]
[337769370,1726084238988,-5087.58632356,0.0001499,2]
[337769371,1726084238999,-1044.62063914,0.0001499,2]
[337769372,1726084239019,-838.15303415,0.0001499,2]
[337769373,1726084239030,-33119.6434447,0.0001499,2]
[337769376,1726084239924,-322.56152394,0.0001499,2]
[337769377,1726084239935,-3868.2,0.0001499,2]
[337769378,1726084239946,-883.29999,0.0001499,2]
[337769379,1726084239958,-743.53229244,0.0001499,2]
[337769380,1726084239982,-628.10547313,0.0001499,2]
[337769381,1726084239994,-424.16972807,0.0001499,2]
[337769382,1726084240035,-1367.76559331,0.0001499,2]
[337769383,1726084240047,-3705.05,0.0001499,2]
[337769384,1726084240091,-3504.1443,0.0001499,2]
[337769385,1726084240102,-1568.29552831,0.0001499,2]
[337769386,1726084240113,-6356.23636126,0.0001499,2]
[337769403,1726084242930,-377.11693109,0.0001499,2]
[337769406,1726084243079,-23200.23079006,0.0001499,2]
[337769407,1726084243139,-1079.31918,0.0001499,2]
[337769408,1726084243151,-457.46219434,0.0001499,2]
[337769409,1726084243163,-265.6000002,0.0001499,2]
[337769410,1726084243175,-31841.47744552,0.0001499,2]
[337769411,1726084243187,-653.31270692,0.0001499,2]
[337769685,1726084246093,-1342.48809834,0.0001499,2]
[337769737,1726084246598,-668.30843146,0.0001499,2]
[337769741,1726084246632,-973.24910627,0.0001499,2]
[337769945,1726084293007,500.0,0.00011164,2]
[337769946,1726084786752,183.98,0.00010959,2]
[337769950,1726085432177,-354.6,0.00012118,2]